[Event "Polofinale MCR junioru 2023"]
[Site "Czech Republic"]
[Date "2023.11.15"]
[Round "6.23"]
[White "Cerny, Michal"]
[Black "Andrle, Filip"]
[Result "1-0"]
[TimeControl "90 min per 40 moves + 15 min + 30 sec / move from move 1"]
[WhiteFideId "391964"]
[BlackFideId "23718749"]
[WhiteElo "1920"]
[BlackElo "2005"]

1. e4 {[%clk 01:30:57]} {[%emt 00:00:02]} c5 {[%clk 01:30:48]} {[%emt
00:00:12]} 2. Nf3 {[%clk 01:31:22]} {[%emt 00:00:05]} Nc6 {[%clk 01:31:11]}
{[%emt 00:00:07]} 3. d4 {[%clk 01:31:47]} {[%emt 00:00:05]} cxd4 {[%clk
01:31:36]} {[%emt 00:00:05]} 4. Nxd4 {[%clk 01:32:12]} {[%emt 00:00:04]} Nf6
{[%clk 01:31:59]} {[%emt 00:00:08]} 5. Nc3 {[%clk 01:32:39]} {[%emt 00:00:04]}
d6 {[%clk 01:32:25]} {[%emt 00:00:04]} 6. Be2 {[%clk 01:33:01]} {[%emt
00:00:08]} e5 {[%clk 01:31:45]} {[%emt 00:01:10]} 7. Nb3 {[%clk 01:33:19]}
{[%emt 00:00:13]} Be6 {[%clk 01:31:43]} {[%emt 00:00:31]} 8. f4 {[%clk
01:33:31]} {[%emt 00:00:18]} exf4 {[%clk 01:29:02]} {[%emt 00:03:11]} 9. Bxf4
{[%clk 01:33:55]} {[%emt 00:00:06]} Be7 {[%clk 01:27:06]} {[%emt 00:02:26]} 10.
Qd3 {[%clk 01:33:59]} {[%emt 00:00:26]} O-O {[%clk 01:23:58]} {[%emt 00:03:38]}
11. O-O-O {[%clk 01:34:20]} {[%emt 00:00:09]} Ng4 {[%clk 01:14:34]} {[%emt
00:09:53]} 12. Bxg4 {[%clk 01:23:57]} {[%emt 00:10:53]} Bxg4 {[%clk 01:14:22]}
{[%emt 00:00:41]} 13. Rd2 {[%clk 01:23:40]} {[%emt 00:00:49]} Ne5 {[%clk
00:51:59]} {[%emt 00:22:53]} 14. Bxe5 {[%clk 01:22:21]} {[%emt 00:01:49]} dxe5
{[%clk 00:51:35]} {[%emt 00:00:53]} 15. Qg3 {[%clk 01:21:16]} {[%emt 00:01:35]}
Qc8 {[%clk 00:50:41]} {[%emt 00:01:24]} 16. Nd5 {[%clk 01:11:55]} {[%emt
00:09:52]} Bg5 {[%clk 00:47:45]} {[%emt 00:03:25]} 17. h3 {[%clk 01:11:00]}
{[%emt 00:01:25]} Bxd2+ {[%clk 00:32:30]} {[%emt 00:15:45]} 18. Nxd2 {[%clk
01:10:04]} {[%emt 00:01:26]} Qc5 {[%clk 00:26:16]} {[%emt 00:06:44]} 19. hxg4
{[%clk 01:09:07]} {[%emt 00:01:27]} Rac8 {[%clk 00:26:06]} {[%emt 00:00:40]} 20.
c3 {[%clk 01:06:27]} {[%emt 00:03:10]} Rfe8 {[%clk 00:22:43]} {[%emt 00:03:53]}
21. g5 {[%clk 00:59:09]} {[%emt 00:07:48]} Re6 {[%clk 00:21:42]} {[%emt
00:01:31]} 22. Qh3 {[%clk 00:44:29]} {[%emt 00:15:09]} h6 {[%clk 00:21:42]}
{[%emt 00:00:30]} 23. Qf5 {[%clk 00:37:08]} {[%emt 00:07:51]} Rcc6 {[%clk
00:20:10]} {[%emt 00:02:03]} 24. gxh6 {[%clk 00:31:07]} {[%emt 00:06:31]} Rxh6
{[%clk 00:18:32]} {[%emt 00:02:07]} 25. Rxh6 {[%clk 00:29:39]} {[%emt
00:01:57]} Rxh6 {[%clk 00:18:27]} {[%emt 00:00:35]} 26. Kc2 {[%clk 00:22:06]}
{[%emt 00:08:04]} Rh1 {[%clk 00:13:31]} {[%emt 00:05:25]} 27. Qg5 {[%clk
00:18:47]} {[%emt 00:03:49]} Qd6 {[%clk 00:06:40]} {[%emt 00:07:21]} 28. Ne7+
{[%clk 00:16:48]} {[%emt 00:02:29]} Kh8 {[%clk 00:07:04]} {[%emt 00:00:05]} 29.
Nf5 {[%clk 00:16:32]} {[%emt 00:00:46]} Qf8 {[%clk 00:07:05]} {[%emt 00:00:28]}
30. Ng3 {[%clk 00:15:51]} {[%emt 00:01:12]} Rh2 {[%clk 00:06:46]} {[%emt
00:00:49]} 31. Ngf1 {[%clk 00:15:19]} {[%emt 00:01:02]} Rh6 {[%clk 00:06:45]}
{[%emt 00:00:30]} 32. Qxe5 {[%clk 00:15:29]} {[%emt 00:00:20]} Re6 {[%clk
00:07:09]} {[%emt 00:00:06]} 33. Qd5 {[%clk 00:15:00]} {[%emt 00:00:58]} b6
{[%clk 00:06:50]} {[%emt 00:00:49]} 34. Ne3 {[%clk 00:14:45]} {[%emt 00:00:45]}
Qe8 {[%clk 00:07:02]} {[%emt 00:00:18]} 35. b3 {[%clk 00:14:00]} {[%emt
00:01:16]} Re5 {[%clk 00:07:21]} {[%emt 00:00:11]} 36. Qd4 {[%clk 00:13:58]}
{[%emt 00:00:32]} Rg5 {[%clk 00:07:03]} {[%emt 00:00:48]} 37. g4 {[%clk
00:13:57]} {[%emt 00:00:32]} Ra5 {[%clk 00:07:16]} {[%emt 00:00:16]} 38. Kb2
{[%clk 00:14:12]} {[%emt 00:00:15]} Qe7 {[%clk 00:07:14]} {[%emt 00:00:32]} 39.
Ndc4 {[%clk 00:14:10]} {[%emt 00:00:33]} Rc5 {[%clk 00:07:24]} {[%emt
00:00:20]} 40. e5 {[%clk 00:13:34]} {[%emt 00:01:06]} Qh4 {[%clk 00:07:39]}
{[%emt 00:00:15]} 41. Nc2 {[%clk 00:11:17]} {[%emt 00:02:47]} Qh1 {[%clk
00:06:33]} {[%emt 00:01:35]} 42. N4e3 {[%clk 00:09:44]} {[%emt 00:02:03]} Qh2
{[%clk 00:06:27]} {[%emt 00:00:36]} 43. Nc4 {[%clk 00:05:57]} {[%emt 00:04:18]}
Qh1 {[%clk 00:06:26]} {[%emt 00:00:31]} 44. Qd7 {[%clk 00:02:42]} {[%emt
00:03:45]} Qh3 {[%clk 00:05:02]} {[%emt 00:01:54]} 45. Qxa7 {[%clk 00:02:03]}
{[%emt 00:01:11]} Qxg4 {[%clk 00:05:12]} {[%emt 00:00:20]} 46. Qxf7 {[%clk
00:01:18]} {[%emt 00:01:14]} 1-0

[Event "Polofinale MCR junioru 2023"]
[Site "Czech Republic"]
[Date "2023.11.15"]
[Round "6.24"]
[White "Simunek, Jakub Simon"]
[Black "Svadlenka, Michal"]
[Result "1/2-1/2"]
[TimeControl "90 min per 40 moves + 15 min + 30 sec / move from move 1"]
[WhiteFideId "23709464"]
[BlackFideId "23717068"]
[WhiteElo "1970"]
[BlackElo "1689"]

1. e4 {[%clk 01:30:49]} {[%emt 00:00:10]} c5 {[%clk 01:30:46]} {[%emt
00:00:15]} 2. Nf3 {[%clk 01:31:14]} {[%emt 00:00:05]} d6 {[%clk 01:31:09]}
{[%emt 00:00:07]} 3. Bb5+ {[%clk 01:31:40]} {[%emt 00:00:04]} Nc6 {[%clk
01:31:28]} {[%emt 00:00:10]} 4. O-O {[%clk 01:32:05]} {[%emt 00:00:05]} Bd7
{[%clk 01:31:39]} {[%emt 00:00:19]} 5. Re1 {[%clk 01:32:26]} {[%emt 00:00:09]}
Nf6 {[%clk 01:31:04]} {[%emt 00:01:05]} 6. c3 {[%clk 01:32:51]} {[%emt
00:00:06]} a6 {[%clk 01:31:30]} {[%emt 00:00:04]} 7. Bf1 {[%clk 01:33:16]}
{[%emt 00:00:04]} e5 {[%clk 01:31:23]} {[%emt 00:00:37]} 8. h3 {[%clk
01:33:15]} {[%emt 00:00:31]} Be7 {[%clk 01:31:35]} {[%emt 00:00:17]} 9. d4
{[%clk 01:33:22]} {[%emt 00:00:23]} b5 {[%clk 01:31:16]} {[%emt 00:00:49]} 10.
a4 {[%clk 01:25:28]} {[%emt 00:08:24]} c4 {[%clk 01:18:39]} {[%emt 00:13:07]}
11. b3 {[%clk 01:11:38]} {[%emt 00:14:20]} cxb3 {[%clk 01:04:35]} {[%emt
00:14:34]} 12. axb5 {[%clk 01:10:44]} {[%emt 00:01:24]} axb5 {[%clk 01:03:26]}
{[%emt 00:01:39]} 13. Rxa8 {[%clk 01:11:01]} {[%emt 00:00:13]} Qxa8 {[%clk
01:03:53]} {[%emt 00:00:04]} 14. Qxb3 {[%clk 01:09:16]} {[%emt 00:02:15]} O-O
{[%clk 00:56:57]} {[%emt 00:07:25]} 15. Bxb5 {[%clk 00:54:07]} {[%emt
00:15:39]} Rb8 {[%clk 00:55:10]} {[%emt 00:02:17]} 16. Ng5 {[%clk 00:51:57]}
{[%emt 00:02:39]} Nd8 {[%clk 00:54:08]} {[%emt 00:01:32]} 17. c4 {[%clk
00:50:11]} {[%emt 00:02:17]} Bxb5 {[%clk 00:49:31]} {[%emt 00:05:08]} 18. cxb5
{[%clk 00:49:19]} {[%emt 00:01:22]} Qa5 {[%emt 00:05:39]} 19. Bd2 {[%clk
00:43:48]} {[%emt 00:00:17]} Qxb5 {[%clk 00:50:18]} 20. Qxb5 Rxb5 21. dxe5
{[%clk 00:43:37]} {[%emt 00:00:06]} dxe5 {[%clk 00:47:59]} {[%emt 00:02:50]} 22.
Nc3 {[%clk 00:39:57]} {[%emt 00:04:10]} Rc5 {[%clk 00:44:15]} {[%emt 00:04:14]}
23. Nf3 {[%clk 00:25:20]} {[%emt 00:15:06]} Nc6 {[%clk 00:42:18]} {[%emt
00:02:28]} 24. Rc1 {[%clk 00:20:53]} {[%emt 00:04:57]} Nd4 {[%clk 00:39:57]}
{[%emt 00:02:51]} 25. Nxd4 {[%clk 00:19:52]} {[%emt 00:01:31]} exd4 {[%clk
00:40:25]} {[%emt 00:00:02]} 26. Nd5 {[%clk 00:17:42]} {[%emt 00:02:41]} Nxd5
{[%clk 00:37:38]} {[%emt 00:03:17]} 27. Rxc5 {[%clk 00:15:24]} {[%emt
00:02:47]} Bxc5 {[%clk 00:38:05]} {[%emt 00:00:03]} 28. exd5 {[%clk 00:15:42]}
{[%emt 00:00:12]} Kf8 {[%clk 00:38:00]} {[%emt 00:00:35]} 29. Kf1 {[%clk
00:16:05]} {[%emt 00:00:07]} Ke7 {[%clk 00:37:19]} {[%emt 00:01:12]} 30. Bf4
{[%clk 00:16:27]} {[%emt 00:00:07]} Bd6 {[%clk 00:33:18]} {[%emt 00:04:30]} 31.
Bg5+ {[%clk 00:14:41]} {[%emt 00:02:16]} f6 {[%clk 00:33:05]} {[%emt 00:00:44]}
32. Bd2 {[%clk 00:15:04]} {[%emt 00:00:06]} Bc5 {[%clk 00:05:14]} {[%emt
00:28:22]} 1/2-1/2

[Event "Polofinale MCR junioru 2023"]
[Site "Czech Republic"]
[Date "2023.11.15"]
[Round "6.25"]
[White "Pressler, Tobias"]
[Black "Sadil, Antonin"]
[Result "1-0"]
[TimeControl "90 min per 40 moves + 15 min + 30 sec / move from move 1"]
[WhiteFideId "23715359"]
[BlackFideId "23735597"]
[WhiteElo "1937"]
[BlackElo "1648"]

1. e4 {[%clk 01:30:51]} {[%emt 00:00:08]} e5 {[%clk 01:30:31]} {[%emt
00:00:29]} 2. Nf3 {[%clk 01:31:12]} {[%emt 00:00:08]} Nf6 {[%clk 01:30:50]}
{[%emt 00:00:12]} 3. Nc3 {[%clk 01:31:14]} {[%emt 00:00:28]} Nc6 {[%clk
01:31:04]} {[%emt 00:00:16]} 4. Bb5 {[%clk 01:30:33]} {[%emt 00:01:11]} Bb4
{[%clk 01:29:21]} {[%emt 00:02:12]} 5. O-O {[%clk 01:30:02]} {[%emt 00:01:02]}
O-O {[%clk 01:28:41]} {[%emt 00:01:10]} 6. d3 {[%clk 01:30:28]} {[%emt
00:00:04]} d6 {[%clk 01:27:37]} {[%emt 00:01:34]} 7. Bg5 {[%clk 01:30:51]} Bxc3
{[%clk 01:22:44]} {[%emt 00:05:29]} 8. bxc3 {[%clk 01:31:14]} a6 {[%clk
01:21:55]} {[%emt 00:01:26]} 9. Bxc6 {[%clk 01:24:29]} bxc6 {[%clk 01:22:14]}
{[%emt 00:07:26]} 10. Rb1 {[%clk 01:19:12]} Bg4 {[%clk 01:20:21]} {[%emt
00:08:09]} 11. h3 {[%clk 01:19:30]} {[%emt 00:00:12]} Be6 {[%clk 01:17:57]}
{[%emt 00:02:54]} 12. c4 {[%clk 01:17:11]} {[%emt 00:02:49]} h6 {[%clk
01:12:39]} {[%emt 00:05:48]} 13. Be3 {[%clk 01:17:25]} {[%emt 00:00:16]} Rb8
{[%clk 01:09:39]} {[%emt 00:03:30]} 14. Qd2 {[%clk 01:16:02]} {[%emt 00:01:54]}
Kh7 {[%clk 01:03:55]} {[%emt 00:06:13]} 15. Qa5 {[%clk 01:14:35]} {[%emt
00:01:57]} Qd7 {[%clk 01:00:04]} {[%emt 00:04:22]} 16. Rfc1 {[%clk 01:06:25]}
{[%emt 00:08:40]} Rxb1 {[%clk 00:56:32]} {[%emt 00:04:02]} 17. Rxb1 {[%clk
01:06:50]} {[%emt 00:00:05]} g5 {[%clk 00:56:35]} {[%emt 00:00:27]} 18. Rb7
{[%clk 01:06:09]} {[%emt 00:01:11]} Ne8 {[%clk 00:53:10]} {[%emt 00:03:55]} 19.
Kf1 {[%clk 00:46:52]} {[%emt 00:19:47]} f5 {[%clk 00:42:55]} {[%emt 00:10:45]}
20. exf5 {[%clk 00:43:55]} {[%emt 00:03:27]} Bxf5 {[%clk 00:43:03]} {[%emt
00:00:21]} 21. c5 {[%clk 00:42:20]} {[%emt 00:02:05]} Qc8 {[%clk 00:37:32]}
{[%emt 00:06:00]} 22. Ra7 {[%clk 00:41:29]} {[%emt 00:01:22]} Bxh3 {[%clk
00:33:41]} {[%emt 00:04:21]} 23. Ne1 {[%clk 00:40:55]} {[%emt 00:01:04]} Bd7
{[%clk 00:30:33]} {[%emt 00:03:37]} 24. cxd6 {[%clk 00:39:53]} {[%emt
00:01:33]} cxd6 {[%clk 00:29:51]} {[%emt 00:01:12]} 25. Qxa6 {[%clk 00:37:25]}
{[%emt 00:02:58]} Qxa6 {[%clk 00:29:59]} {[%emt 00:00:22]} 26. Rxa6 {[%clk
00:37:51]} {[%emt 00:00:04]} Nf6 {[%clk 00:28:44]} {[%emt 00:01:44]} 27. Ke2
{[%clk 00:37:13]} {[%emt 00:01:08]} Kg6 {[%clk 00:28:06]} {[%emt 00:01:08]} 28.
Nf3 {[%clk 00:36:26]} {[%emt 00:01:17]} Nd5 {[%clk 00:26:34]} {[%emt 00:02:03]}
29. a3 {[%clk 00:29:29]} {[%emt 00:07:27]} Nxe3 {[%clk 00:25:34]} {[%emt
00:01:29]} 30. Kxe3 {[%clk 00:29:44]} {[%emt 00:00:15]} h5 {[%clk 00:23:57]}
{[%emt 00:02:07]} 31. c4 {[%clk 00:28:32]} {[%emt 00:01:43]} Kf5 {[%clk
00:19:35]} {[%emt 00:04:51]} 32. g3 {[%clk 00:26:48]} {[%emt 00:02:14]} Kg4
{[%clk 00:18:51]} {[%emt 00:01:12]} 33. Nd2 {[%clk 00:25:32]} {[%emt 00:01:49]}
h4 {[%clk 00:17:47]} {[%emt 00:01:34]} 34. gxh4 {[%clk 00:25:46]} {[%emt
00:00:16]} gxh4 {[%clk 00:18:00]} {[%emt 00:00:16]} 35. Ra7 {[%clk 00:26:11]}
{[%emt 00:00:06]} Rd8 {[%clk 00:17:01]} {[%emt 00:01:28]} 36. Ne4 {[%clk
00:25:49]} {[%emt 00:00:53]} h3 {[%clk 00:15:45]} {[%emt 00:01:46]} 37. f3+
{[%clk 00:24:28]} {[%emt 00:01:51]} Kh4 {[%clk 00:15:53]} {[%emt 00:00:22]} 38.
Kf2 {[%clk 00:23:50]} {[%emt 00:01:09]} Bf5 {[%clk 00:15:32]} {[%emt 00:00:51]}
39. Rf7 {[%clk 00:23:49]} {[%emt 00:00:31]} Bxe4 {[%clk 00:09:19]} {[%emt
00:06:43]} 40. dxe4 {[%clk 00:23:53]} {[%emt 00:00:26]} Ra8 {[%clk 00:09:16]}
{[%emt 00:00:32]} 41. Rh7+ {[%clk 00:24:15]} {[%emt 00:00:08]} Kg5 {[%clk
00:09:08]} {[%emt 00:00:37]} 42. Rxh3 {[%clk 00:24:25]} {[%emt 00:00:21]} Kg6
{[%clk 00:08:21]} {[%emt 00:01:17]} 43. Rh1 {[%clk 00:23:57]} {[%emt 00:00:58]}
Rxa3 {[%clk 00:08:07]} {[%emt 00:00:44]} 44. Rd1 {[%clk 00:24:18]} {[%emt
00:00:09]} Ra2+ {[%clk 00:07:03]} {[%emt 00:01:35]} 45. Kg3 {[%clk 00:24:39]}
{[%emt 00:00:08]} Ra6 {[%clk 00:06:46]} {[%emt 00:00:47]} 46. Rxd6+ {[%clk
00:24:59]} {[%emt 00:00:10]} Kf7 {[%clk 00:06:26]} {[%emt 00:00:50]} 47. Kg4
{[%clk 00:24:34]} {[%emt 00:00:55]} Ke7 {[%clk 00:06:13]} {[%emt 00:00:43]} 48.
c5 {[%clk 00:24:50]} {[%emt 00:00:14]} Kf7 {[%clk 00:02:59]} {[%emt 00:03:44]}
49. Kf5 {[%clk 00:23:45]} {[%emt 00:01:35]} Ra3 {[%clk 00:03:17]} {[%emt
00:00:12]} 50. Rxc6 {[%clk 00:24:02]} {[%emt 00:00:13]} Rxf3+ {[%clk 00:03:20]}
{[%emt 00:00:27]} 51. Kxe5 {[%clk 00:24:20]} {[%emt 00:00:12]} Ke7 {[%clk
00:03:28]} {[%emt 00:00:21]} 52. Rc7+ {[%clk 00:24:22]} {[%emt 00:00:30]} Kd8
{[%clk 00:03:24]} {[%emt 00:00:34]} 53. Rg7 {[%clk 00:24:30]} {[%emt 00:00:21]}
Rc3 {[%clk 00:02:24]} {[%emt 00:01:30]} 54. Kd6 {[%clk 00:24:00]} {[%emt
00:01:00]} Rd3+ {[%clk 00:01:47]} {[%emt 00:01:07]} 55. Kc6 {[%clk 00:24:20]}
{[%emt 00:00:10]} Re3 {[%clk 00:01:36]} {[%emt 00:00:41]} 56. Kd5 {[%clk
00:23:43]} {[%emt 00:01:08]} Rd3+ {[%clk 00:00:51]} {[%emt 00:01:14]} 57. Ke6
{[%clk 00:24:03]} {[%emt 00:00:09]} Rc3 {[%clk 00:15:48]} {[%emt 00:01:02]} 58.
e5 {[%clk 00:40:24]} {[%emt 00:00:10]} Rxc5 {[%clk 00:15:55]} {[%emt 00:00:23]}
59. Kd6 {[%clk 00:40:42]} {[%emt 00:00:12]} 1-0

[Event "Polofinale MCR junioru 2023"]
[Site "Czech Republic"]
[Date "2023.11.15"]
[Round "6.26"]
[White "Mydlar, Matej"]
[Black "Hrbek, Jachym"]
[Result "1/2-1/2"]
[TimeControl "90 min per 40 moves + 15 min + 30 sec / move from move 1"]
[WhiteFideId "23735074"]
[BlackFideId "23709138"]
[WhiteElo "1809"]
[BlackElo "1913"]

1. e4 {[%clk 01:30:52]} {[%emt 00:00:07]} c6 {[%clk 01:30:20]} {[%emt
00:00:39]} 2. d4 {[%clk 01:30:52]} {[%emt 00:00:31]} d5 {[%clk 01:30:39]}
{[%emt 00:00:10]} 3. exd5 {[%clk 01:30:54]} {[%emt 00:00:29]} cxd5 {[%clk
01:30:53]} {[%emt 00:00:15]} 4. Bd3 {[%clk 01:31:08]} {[%emt 00:00:17]} Nc6
{[%clk 01:31:02]} {[%emt 00:00:20]} 5. c3 {[%clk 01:31:16]} {[%emt 00:00:24]}
Nf6 {[%clk 01:30:45]} {[%emt 00:00:46]} 6. Bf4 {[%clk 01:30:46]} {[%emt
00:01:00]} g6 {[%clk 01:30:05]} {[%emt 00:01:10]} 7. Ne2 {[%clk 01:30:07]}
{[%emt 00:01:09]} Bg7 {[%clk 01:29:28]} {[%emt 00:01:06]} 8. O-O {[%clk
01:29:34]} {[%emt 00:01:02]} O-O {[%clk 01:29:11]} {[%emt 00:00:48]} 9. Nd2
{[%clk 01:25:10]} {[%emt 00:04:55]} Bf5 {[%clk 01:25:47]} {[%emt 00:03:50]} 10.
Bxf5 {[%clk 01:23:55]} {[%emt 00:01:49]} gxf5 {[%clk 01:25:53]} {[%emt
00:00:22]} 11. Ng3 {[%clk 01:23:48]} {[%emt 00:00:38]} e6 {[%clk 01:25:51]}
{[%emt 00:00:31]} 12. Nh5 {[%clk 01:23:37]} {[%emt 00:00:43]} Nxh5 {[%clk
01:18:12]} {[%emt 00:08:08]} 13. Qxh5 {[%clk 01:23:21]} {[%emt 00:00:46]} Kh8
{[%clk 00:52:17]} {[%emt 00:26:26]} 14. Nf3 {[%clk 01:21:19]} {[%emt 00:02:31]}
f6 {[%clk 00:50:56]} {[%emt 00:01:51]} 15. Rfe1 {[%clk 01:20:53]} {[%emt
00:00:57]} Qe8 {[%clk 00:50:53]} {[%emt 00:00:33]} 16. Qh3 {[%clk 01:20:07]}
{[%emt 00:01:16]} Qf7 {[%clk 00:50:08]} {[%emt 00:01:14]} 17. Re2 {[%clk
01:12:36]} {[%emt 00:08:02]} Rae8 {[%clk 00:36:52]} {[%emt 00:13:44]} 18. Rae1
{[%clk 01:12:05]} {[%emt 00:01:02]} Qd7 {[%clk 00:35:26]} {[%emt 00:01:53]} 19.
Qh5 {[%clk 01:10:06]} {[%emt 00:02:32]} Re7 {[%clk 00:31:09]} {[%emt 00:04:48]}
20. h3 {[%clk 01:05:19]} {[%emt 00:05:16]} Rfe8 {[%clk 00:22:46]} {[%emt
00:08:51]} 21. Bh2 {[%clk 01:03:36]} {[%emt 00:02:15]} Kg8 {[%clk 00:21:47]}
{[%emt 00:01:28]} 22. Nh4 {[%clk 01:03:36]} {[%emt 00:00:29]} Nd8 {[%clk
00:21:15]} {[%emt 00:01:02]} 23. Bf4 {[%clk 00:58:42]} {[%emt 00:05:25]}
1/2-1/2

[Event "Polofinale MCR junioru 2023"]
[Site "Czech Republic"]
[Date "2023.11.15"]
[Round "6.27"]
[White "Gregor, Alexandr"]
[Black "Babula, Matej"]
[Result "1/2-1/2"]
[TimeControl "90 min per 40 moves + 15 min + 30 sec / move from move 1"]
[WhiteFideId "23735813"]
[BlackFideId "398322"]
[WhiteElo "1601"]
[BlackElo "1899"]

1. e4 {[%clk 01:30:57]} {[%emt 00:00:01]} e5 {[%clk 01:30:54]} {[%emt
00:00:06]} 2. Nf3 {[%clk 01:31:16]} {[%emt 00:00:11]} Nc6 {[%clk 01:31:18]}
{[%emt 00:00:06]} 3. Bc4 {[%clk 01:31:31]} {[%emt 00:00:16]} Nf6 {[%clk
01:31:35]} {[%emt 00:00:12]} 4. d3 {[%clk 01:31:49]} {[%emt 00:00:13]} h6
{[%clk 01:31:50]} {[%emt 00:00:15]} 5. Be3 {[%clk 01:31:49]} {[%emt 00:00:30]}
d6 {[%clk 01:31:26]} {[%emt 00:00:54]} 6. h3 {[%clk 01:32:07]} {[%emt
00:00:11]} Na5 {[%clk 01:28:38]} {[%emt 00:03:17]} 7. Bb3 {[%clk 01:29:36]}
{[%emt 00:03:02]} Nxb3 {[%clk 01:26:54]} {[%emt 00:02:13]} 8. axb3 {[%clk
01:29:59]} {[%emt 00:00:07]} a6 {[%clk 01:24:53]} {[%emt 00:02:31]} 9. Nc3
{[%clk 01:29:22]} {[%emt 00:01:07]} Be7 {[%clk 01:16:31]} {[%emt 00:08:52]} 10.
O-O {[%clk 01:29:19]} {[%emt 00:00:33]} O-O {[%clk 01:16:50]} {[%emt 00:00:10]}
11. d4 {[%clk 01:27:57]} {[%emt 00:01:52]} exd4 {[%clk 01:17:11]} {[%emt
00:00:09]} 12. Nxd4 {[%clk 01:28:14]} {[%emt 00:00:13]} Re8 {[%clk 01:13:36]}
{[%emt 00:04:05]} 13. Qf3 {[%clk 01:27:37]} {[%emt 00:01:07]} Bf8 {[%clk
01:10:45]} {[%emt 00:03:21]} 14. Rfe1 {[%clk 01:18:57]} {[%emt 00:09:11]} g6
{[%clk 01:04:45]} {[%emt 00:06:29]} 15. Rad1 {[%clk 01:18:14]} {[%emt
00:01:13]} Bg7 {[%clk 01:03:48]} {[%emt 00:01:27]} 16. Nde2 {[%clk 01:06:38]}
{[%emt 00:12:07]} Bd7 {[%clk 00:56:57]} {[%emt 00:07:21]} 17. Nf4 {[%clk
01:06:48]} {[%emt 00:00:20]} Bc6 {[%clk 00:56:45]} {[%emt 00:00:41]} 18. Nfd5
{[%clk 01:03:59]} {[%emt 00:03:19]} Nxd5 {[%clk 00:49:15]} {[%emt 00:08:00]} 19.
Nxd5 {[%clk 00:58:44]} {[%emt 00:05:45]} Bxd5 {[%clk 00:43:21]} {[%emt
00:06:23]} 20. exd5 {[%clk 00:55:41]} {[%emt 00:03:33]} Qh4 {[%clk 00:35:17]}
{[%emt 00:08:33]} 21. c3 {[%clk 00:53:28]} {[%emt 00:02:44]} Qe4 {[%clk
00:32:21]} {[%emt 00:03:26]} 22. Qxe4 {[%clk 00:51:16]} {[%emt 00:02:43]} Rxe4
{[%clk 00:32:49]} {[%emt 00:00:02]} 23. f3 {[%clk 00:50:17]} {[%emt 00:01:29]}
Re7 {[%clk 00:32:06]} {[%emt 00:01:12]} 24. Kf2 {[%clk 00:50:09]} {[%emt
00:00:38]} f5 {[%clk 00:30:31]} {[%emt 00:02:05]} 25. Bf4 {[%clk 00:46:26]}
{[%emt 00:04:14]} Rae8 {[%clk 00:30:44]} {[%emt 00:00:16]} 26. Rxe7 {[%clk
00:46:39]} {[%emt 00:00:17]} Rxe7 {[%clk 00:31:11]} {[%emt 00:00:04]} 27. Re1
{[%clk 00:46:13]} {[%emt 00:00:56]} Rxe1 {[%clk 00:28:03]} {[%emt 00:03:38]} 28.
Kxe1 {[%clk 00:46:37]} {[%emt 00:00:05]} Kf7 {[%clk 00:27:52]} {[%emt
00:00:41]} 29. Ke2 {[%clk 00:46:56]} {[%emt 00:00:11]} h5 {[%clk 00:24:40]}
{[%emt 00:03:41]} 30. Kd3 {[%clk 00:45:51]} {[%emt 00:01:36]} Be5 {[%clk
00:23:49]} {[%emt 00:01:20]} 31. Bg5 {[%clk 00:44:17]} {[%emt 00:02:05]} Bf6
{[%clk 00:24:09]} {[%emt 00:00:10]} 32. Bf4 {[%clk 00:44:14]} {[%emt 00:00:32]}
Be5 {[%clk 00:24:08]} {[%emt 00:00:31]} 33. Bg5 {[%clk 00:44:39]} {[%emt
00:00:06]} Ke8 {[%clk 00:23:03]} {[%emt 00:01:35]} 34. Bh4 {[%clk 00:44:43]}
{[%emt 00:00:26]} Kd7 {[%clk 00:23:17]} {[%emt 00:00:16]} 35. Bg5 {[%clk
00:44:22]} {[%emt 00:00:51]} Ke8 {[%clk 00:22:54]} {[%emt 00:00:53]} 36. Bh4
{[%clk 00:44:45]} {[%emt 00:00:08]} Bf4 {[%clk 00:22:38]} {[%emt 00:00:45]} 37.
Bf6 {[%clk 00:44:20]} {[%emt 00:00:55]} Kd7 {[%clk 00:22:49]} {[%emt 00:00:19]}
38. Bh4 {[%clk 00:44:39]} {[%emt 00:00:11]} c6 {[%clk 00:22:02]} {[%emt
00:01:17]} 39. dxc6+ {[%clk 00:44:30]} {[%emt 00:00:39]} Kxc6 {[%clk 00:19:44]}
{[%emt 00:02:48]} 40. Bf6 {[%clk 00:43:34]} {[%emt 00:01:26]} Kc5 {[%clk
00:18:16]} {[%emt 00:01:58]} 41. Bd4+ {[%clk 00:43:12]} {[%emt 00:00:53]} Kd5
{[%clk 00:18:13]} {[%emt 00:00:32]} 42. Bf6 {[%clk 00:40:49]} {[%emt 00:02:53]}
Be5 {[%clk 00:14:47]} {[%emt 00:03:57]} 43. Bg5 {[%clk 00:41:07]} {[%emt
00:00:12]} Kc5 {[%clk 00:14:36]} {[%emt 00:00:41]} 44. Be3+ {[%clk 00:41:27]}
{[%emt 00:00:10]} Kb5 {[%clk 00:14:57]} {[%emt 00:00:09]} 45. Bg5 {[%clk
00:40:27]} {[%emt 00:01:31]} Kc6 {[%clk 00:14:55]} {[%emt 00:00:32]} 46. Be3
{[%clk 00:40:46]} {[%emt 00:00:10]} b5 {[%clk 00:14:15]} {[%emt 00:01:10]} 47.
Bg5 {[%clk 00:40:32]} {[%emt 00:00:44]} Kd5 {[%clk 00:08:52]} {[%emt 00:05:53]}
48. Be3 {[%clk 00:40:49]} {[%emt 00:00:14]} Bg3 {[%clk 00:05:13]} {[%emt
00:04:09]} 49. Bd4 {[%clk 00:40:29]} {[%emt 00:00:51]} Ke6 {[%clk 00:03:59]}
{[%emt 00:01:43]} 50. Be3 {[%clk 00:40:02]} {[%emt 00:00:57]} Bh4 {[%clk
00:03:12]} {[%emt 00:01:17]} 51. Bf4 {[%clk 00:40:07]} {[%emt 00:00:25]} Bf2
{[%clk 00:01:12]} {[%emt 00:02:30]} 52. Ke2 {[%clk 00:39:31]} {[%emt 00:01:07]}
1/2-1/2